fUSD/lending_fUSD_20241030
["ID","MTS","AMOUNT","RATE_DAILY","PERIOD"]
[341037298,1730299165407,156.61,0.00015342,2]
[341037323,1730299831693,-200.0,0.00026062,2]
[341037324,1730299831702,-737.04,0.00029444,2]
[341037325,1730299831711,-157.2125,0.0003,2]
[341037326,1730299831884,-11.7675,0.0003,2]
[341037327,1730299831898,-145.445,0.0003,2]
[341037328,1730299831907,-704.0,0.0003,4]
[341037329,1730299831917,-200.0,0.00030687,2]
[341037330,1730299831927,-250.0,0.0003072,2]
[341037331,1730299831937,-150.0,0.0003079,7]
[341037332,1730299831946,-590.33212328,0.00030823,2]
[341037333,1730299831971,-579.13787672,0.00030823,2]
[341037334,1730299831980,-3047.02171162,0.00030823,2]
[341037335,1730299832000,-268.07010932,0.00030823,2]
[341037336,1730299832011,-1378.29577402,0.00030823,2]
[341037337,1730299832022,-427.51880542,0.00030823,2]
[341037338,1730299832034,-2066.01359962,0.00030823,2]
[341037339,1730299832044,-250.0,0.0003086,2]
[341037340,1730299832053,-2354.26,0.00030887,2]
[341037341,1730299832063,-200.0,0.00030963,2]
[341037342,1730299832072,-606.12,0.00030963,2]
[341037343,1730299832082,-652.55,0.00031019,2]
[341037344,1730299832092,-204.97,0.00031028,2]
[341037345,1730299832101,-428.25,0.00031073,2]
[341037346,1730299832111,-162.38,0.00031073,2]
[341037347,1730299832120,-999.99,0.00031073,2]
[341037348,1730299832130,-3120.8,0.00031073,2]
[341037349,1730299832139,-858.34,0.00031073,2]
[341037350,1730299832150,-500.0,0.00031131,2]
[341037351,1730299832159,-157.56,0.00031186,2]
[341037352,1730299832168,-4465.84,0.00031186,2]
[341037353,1730299832178,-793.15,0.00031186,2]
[341037354,1730299832188,-324.69,0.00031186,2]
[341037355,1730299832198,-150.99,0.00031186,2]
[341037356,1730299832207,-624.6,0.00031186,2]
[341037357,1730299832218,-663.89406571,0.00031315,2]
[341037358,1730299832229,-1789.54181961,0.00031315,2]
[341037359,1730299832241,-834.56411468,0.00031315,2]
[341037360,1730299832251,-156.89,0.00031424,2]
[341037361,1730299832260,-391.33395924,0.0003149,2]
[341037362,1730299832272,-734.53243139,0.0003149,2]
[341037363,1730299832281,-170.55843451,0.0003149,2]
[341037364,1730299832291,-215.563,0.00031525,29]
[341037365,1730299832300,-262.89,0.00031525,2]
[341037366,1730299832310,-167.43,0.0003163,2]
[341037367,1730299832319,-737.04,0.00031707,2]
[341037368,1730299832329,-1402.0941,0.0003178,2]
[341037370,1730299832338,-182.4,0.00031972,2]
[341037372,1730299832347,-1510.4920341,0.00032,2]
[341037376,1730299832548,-122428.80496688,0.00032,2]
[341037377,1730299832558,-152.0,0.00032063,3]
[341037378,1730299832568,-408.3872,0.000324,2]
[341037379,1730299832578,-1838.2354,0.000324,2]
[341037380,1730299832588,-26179.2742,0.000324,2]
[341037381,1730299832598,-301.35400986,0.000325,2]
[341037382,1730299832607,-2003.08347009,0.000325,15]
[341037383,1730299832617,-2000.0,0.000325,2]
[341037384,1730299832626,-200.0,0.000325,2]
[341037385,1730299832636,-1302.09831989,0.00032599,15]
[341037386,1730299832646,-667463.04092197,0.000326,10]
[341037387,1730299832656,-522.75278432,0.000326,4]
[341037388,1730299832666,-2000.0,0.000326,2]
[341037389,1730299832675,-200.0,0.000326,2]
[341037390,1730299832685,-5814.968185,0.000327,2]
[341037391,1730299832694,-600.0,0.000327,11]
[341037392,1730299832704,-301.35400986,0.000327,2]
[341037393,1730299832713,-2003.08347009,0.00032767,15]
[341037394,1730299832727,-235.0,0.000328,5]
[341037395,1730299832737,-191955.95900518,0.000328,2]
[341037396,1730299832746,-210.72987221,0.000328,2]
[341037397,1730299832756,-1200.0,0.000328,11]
[341037398,1730299832765,-150.0,0.00032826,2]
[341037399,1730299832775,-27971.58260013,0.0003287,2]
[341037400,1730299832784,-500.0,0.00032873,2]
[341037401,1730299832794,-500.27252158,0.00032873,5]
[341037402,1730299832803,-150.01,0.00032875,2]
[341037403,1730299832813,-1641.55357631,0.00032875,2]
[341037404,1730299832823,-186.48393731,0.00032875,30]
[341037405,1730299832832,-4741.20483769,0.00032876,2]
[341037406,1730299832842,-249.02707145,0.00032876,7]
[341037407,1730299832854,-520.24947506,0.00032876,5]
[341037408,1730299832864,-512.19,0.00032876,5]
[341037409,1730299832873,-500.0,0.00032876,5]
[341037410,1730299832883,-500.0,0.00032876,5]
[341037411,1730299832893,-423.49760965,0.00032876,5]
[341037412,1730299832903,-500.0,0.00032876,5]
[341037413,1730299832912,-500.0,0.00032876,5]
[341037414,1730299832921,-500.0,0.00032876,5]
[341037415,1730299832933,-500.0,0.00032876,5]
[341037416,1730299832943,-500.0,0.00032876,5]
[341037417,1730299832953,-500.0,0.00032876,5]
[341037418,1730299832963,-500.0,0.00032876,5]
[341037419,1730299832975,-500.0,0.00032876,5]
[341037420,1730299832984,-500.0,0.00032876,5]
[341037421,1730299832993,-500.0,0.00032876,5]
[341037422,1730299833002,-500.0,0.00032876,5]
[341037423,1730299833011,-500.0,0.00032876,5]
[341037424,1730299833022,-500.0,0.00032876,5]
[341037425,1730299833032,-538.9176708,0.00032876,5]
[341037426,1730299833042,-500.0,0.00032876,5]
[341037427,1730299833051,-500.0,0.00032876,5]
[341037428,1730299833061,-534.07470813,0.00032876,5]
[341037429,1730299833070,-500.0,0.00032876,5]
[341037430,1730299833080,-500.0,0.00032876,5]
[341037431,1730299833090,-329.47744636,0.00032876,5]
[341037432,1730299833100,-106.96229074,0.00032876,5]
[341037433,1730299833114,-393.03770926,0.00032876,5]
[341037434,1730299833125,-500.0,0.00032876,5]
[341037435,1730299833135,-500.0,0.00032876,5]
[341037436,1730299833145,-500.0,0.00032876,5]
[341037437,1730299833155,-500.0,0.00032876,5]
[341037438,1730299833165,-499.94872183,0.00032876,5]
[341037439,1730299833174,-500.0,0.00032876,5]
[341037440,1730299833184,-362.60037536,0.00032876,5]
[341037441,1730299833194,-500.0,0.00032876,5]
[341037442,1730299833204,-526.85579642,0.00032876,5]
[341037443,1730299833214,-500.0,0.00032876,5]
[341037444,1730299833227,-441.93181389,0.00032876,5]
[341037445,1730299833240,-58.06818611,0.00032876,5]
[341037446,1730299833250,-500.0,0.00032876,5]
[341037447,1730299833260,-33.3134157,0.00032876,5]
[341037448,1730299833272,-466.6865843,0.00032876,5]
[341037449,1730299833281,-500.0,0.00032876,5]
[341037450,1730299833291,-492.0465443,0.00032876,5]
[341037451,1730299833300,-546.63453348,0.00032876,5]
[341037452,1730299833310,-500.0,0.00032876,5]
[341037453,1730299833320,-518.39281875,0.00032876,5]
[341037454,1730299833329,-812.06,0.00032876,5]
[341037455,1730299833339,-500.0,0.00032876,2]
[341037456,1730299833349,-704.36,0.00032876,5]
[341037457,1730299833359,-500.0,0.00032876,5]
[341037458,1730299833369,-318.10586403,0.00032876,5]
[341037459,1730299833382,-181.89413597,0.00032876,5]
[341037460,1730299833391,-810.43179162,0.00032876,5]
[341037461,1730299833411,-8.74820838,0.00032876,5]
[341037462,1730299833421,-500.0,0.00032876,5]
[341037463,1730299833431,-500.0,0.00032876,5]
[341037464,1730299833440,-901.94,0.00032876,5]
[341037465,1730299833450,-500.0,0.00032876,5]
[341037466,1730299833460,-872.05,0.00032876,5]
[341037467,1730299833472,-500.0,0.00032876,2]
[341037468,1730299833482,-500.0,0.00032876,5]
[341037469,1730299833491,-500.0,0.00032876,5]
[341037470,1730299833500,-500.0,0.00032876,5]
[341037471,1730299833510,-500.0,0.00032876,5]
[341037472,1730299833520,-500.0,0.00032876,7]
[341037473,1730299833530,-500.0,0.00032876,5]
[341037474,1730299833540,-500.0,0.00032876,5]
[341037475,1730299833550,-500.0,0.00032876,5]
[341037476,1730299833559,-500.0,0.00032876,5]
[341037477,1730299833568,-500.0,0.00032876,5]
[341037478,1730299833578,-583.57,0.00032876,5]
[341037479,1730299833588,-500.0,0.00032876,5]
[341037480,1730299833597,-500.0,0.00032876,5]
[341037481,1730299833607,-500.0,0.00032876,5]
[341037482,1730299833616,-500.0,0.00032876,5]
[341037483,1730299833626,-500.0,0.00032876,5]
[341037484,1730299833635,-500.0,0.00032876,5]
[341037485,1730299833646,-500.0,0.00032876,5]
[341037486,1730299833656,-1319.61,0.00032876,5]
[341037487,1730299833665,-500.0,0.00032876,5]
[341037488,1730299833675,-730.99,0.00032876,5]
[341037489,1730299833684,-500.0,0.00032876,5]
[341037490,1730299833694,-1251.63,0.00032876,5]
[341037491,1730299833704,-500.0,0.00032876,5]
[341037492,1730299833714,-528.07099143,0.00032876,5]
[341037493,1730299833729,-561.15,0.00032876,5]
[341037494,1730299833738,-500.0,0.00032876,5]
[341037495,1730299833748,-479.88318291,0.00032876,5]
[341037496,1730299833758,-500.0,0.00032876,5]
[341037497,1730299833768,-500.0,0.00032876,5]
[341037498,1730299833778,-285.35597026,0.00032876,5]
[341037499,1730299833790,-214.64402974,0.00032876,5]
[341037500,1730299833800,-500.0,0.00032876,5]
[341037501,1730299833811,-500.0,0.00032876,5]
[341037502,1730299833821,-235.35597026,0.00032876,5]
[341037503,1730299833838,-464.97402974,0.00032876,5]
[341037504,1730299833849,-500.0,0.00032876,5]
[341037505,1730299833860,-500.0,0.00032876,5]
[341037506,1730299833870,-139.71948281,0.00032876,5]
[341037510,1730299837839,-9200.83281327,0.0003,2]
[341037511,1730299837849,-17941.2032417,0.00030655,2]
[341037512,1730299837993,-5958.7967583,0.00030655,2]
[341037513,1730299838004,-820.77678815,0.00032875,2]
[341037514,1730299838014,-360.28051719,0.00032876,5]
[341037515,1730299838023,-198.33897327,0.00032876,5]
[341037516,1730299838199,-301.66102673,0.00032876,5]
[341037517,1730299838210,-450.55029604,0.00032876,5]
[341038009,1730299880817,-371.00678063,0.00032873,5]
[341038010,1730299880837,-128.99321937,0.00032873,5]
[341038011,1730299880847,-189.83970396,0.00032876,5]
[341038012,1730299880856,-142.04439934,0.00032876,5]
[341038013,1730299881169,-739.25,0.00032016,2]
[341038014,1730299881179,-378.47560066,0.00032876,5]
[341038015,1730299881189,-500.0,0.00032876,5]
[341038016,1730299881199,-500.0,0.00032876,5]
[341038017,1730299881208,-970.04,0.00032876,5]
[341038018,1730299881217,-500.0,0.00032876,5]
[341038019,1730299881227,-500.0,0.00032876,5]
[341038020,1730299881237,-500.0,0.00032876,5]
[341038021,1730299881246,-500.0,0.00032876,5]
[341038022,1730299881261,-500.0,0.00032876,5]
[341038023,1730299881271,-556.21,0.00032876,5]
[341038024,1730299881280,-500.0,0.00032876,5]
[341038025,1730299881290,-500.0,0.00032876,5]
[341038026,1730299881299,-967.06,0.00032876,5]
[341038027,1730299881309,-500.0,0.00032876,5]
[341038028,1730299881318,-500.0,0.00032876,5]
[341038029,1730299881327,-500.0,0.00032876,7]
[341038030,1730299881336,-500.0,0.00032876,5]
[341038031,1730299881346,-500.0,0.00032876,5]
[341038032,1730299881355,-500.0,0.00032876,5]
[341038033,1730299881536,-500.0,0.00032876,5]
[341038034,1730299881546,-731.56,0.00032876,5]
[341038035,1730299881556,-500.0,0.00032876,5]
[341038036,1730299881565,-670.65,0.00032876,5]
[341038037,1730299881575,-1276.1,0.00032876,5]
[341038038,1730299881585,-1820.04,0.00032876,5]
[341038039,1730299881594,-500.0,0.00032876,5]
[341038040,1730299881604,-500.0,0.00032876,5]
[341038041,1730299881613,-812.27,0.00032876,5]
[341038042,1730299881623,-834.4,0.00032876,5]
[341038043,1730299881633,-500.0,0.00032876,5]
[341038044,1730299881643,-500.0,0.00032876,5]
[341038045,1730299881653,-665.61,0.00032876,5]
[341038046,1730299881663,-500.0,0.00032876,5]
[341038047,1730299881672,-500.0,0.00032876,5]
[341038048,1730299881682,-500.0,0.00032876,5]
[341038049,1730299881692,-500.0,0.00032876,5]
[341038050,1730299881702,-1007.49,0.00032876,5]
[341038051,1730299881715,-1007.49,0.00032876,5]
[341038052,1730299881724,-1007.49,0.00032876,5]
[341038053,1730299881733,-1007.49,0.00032876,5]
[341038054,1730299881743,-450.69448232,0.00032876,5]
[341038055,1730299881758,-500.0,0.00032876,5]
[341038056,1730299881768,-1007.49,0.00032876,5]
[341038057,1730299881778,-1007.49,0.00032876,5]
[341038058,1730299881787,-1007.49,0.00032876,5]
[341038059,1730299881797,-500.0,0.00032876,5]
[341038060,1730299881806,-783.96,0.00032876,2]
[341038061,1730299881816,-500.0,0.00032876,5]
[341038062,1730299881826,-500.0,0.00032876,5]
[341038063,1730299881835,-500.0,0.00032876,5]
[341038064,1730299881845,-500.0,0.00032876,5]
[341038065,1730299881854,-500.0,0.00032876,5]
[341038066,1730299881864,-500.0,0.00032876,5]
[341038067,1730299881875,-500.0,0.00032876,5]
[341038068,1730299881885,-500.0,0.00032876,5]
[341038069,1730299881894,-500.0,0.00032876,5]
[341038070,1730299881904,-500.0,0.00032876,5]
[341038071,1730299881913,-2000.0,0.00032876,5]
[341038072,1730299881923,-500.0,0.00032876,5]
[341038073,1730299881935,-890.32,0.00032876,5]
[341038074,1730299881945,-591.78,0.00032876,5]
[341038075,1730299881955,-901.09,0.00032876,5]
[341038076,1730299881964,-500.0,0.00032876,5]
[341038077,1730299881974,-395.41450753,0.00032876,5]
[341038078,1730299881984,-500.0,0.00032876,5]
[341038079,1730299881994,-500.0,0.00032876,5]
[341038080,1730299882007,-236.07002138,0.00032876,5]
[341038081,1730299882016,-500.0,0.00032876,5]
[341038082,1730299882025,-500.0,0.00032876,5]
[341038083,1730299882035,-500.0,0.00032876,5]
[341038084,1730299882044,-1187.01,0.00032876,5]
[341038085,1730299882054,-500.0,0.00032876,5]
[341038086,1730299882064,-500.0,0.00032876,5]
[341038087,1730299882074,-500.0,0.00032876,5]
[341038088,1730299882083,-595.81559038,0.00032876,5]
[341038089,1730299882093,-150.0,0.00032876,2]
[341038090,1730299882102,-851.51956709,0.00032876,5]
[341038091,1730299882121,-2396.27043291,0.00032876,5]
[341038092,1730299882130,-550.29811689,0.00032876,5]
[341038093,1730299882139,-500.0,0.00032876,5]
[341038094,1730299882148,-500.0,0.00032876,5]
[341038095,1730299882157,-500.0,0.00032876,5]
[341038096,1730299882166,-500.0,0.00032876,5]
[341038097,1730299882176,-3761.91,0.00032876,5]
[341038098,1730299882186,-397.25350676,0.00032876,5]
[341038099,1730299882195,-55.74036012,0.00032876,5]
[341038100,1730299882207,-444.25963988,0.00032876,5]
[341038101,1730299882217,-1089.14,0.00032876,5]
[341038102,1730299882227,-380.33185068,0.00032876,5]
[341038103,1730299882237,-628.01824055,0.00032876,5]
[341038104,1730299882247,-500.0,0.00032876,5]
[341038105,1730299882259,-524.26,0.00032876,5]
[341038106,1730299882267,-2.97313477,0.00032876,5]
[341038107,1730299882331,-497.02686523,0.00032876,5]
[341038108,1730299882340,-500.0,0.00032876,5]
[341038109,1730299882350,-500.0,0.00032876,5]
[341038110,1730299882359,-500.0,0.00032876,5]
[341038111,1730299882369,-500.0,0.00032876,5]
[341038112,1730299882378,-608.87040759,0.00032876,5]
[341038113,1730299882388,-604.16,0.00032876,5]
[341038114,1730299882398,-500.0,0.00032876,5]
[341038115,1730299882407,-500.0,0.00032876,5]
[341038116,1730299882417,-500.0,0.00032876,5]
[341038117,1730299882426,-595.74,0.00032876,5]
[341038118,1730299882435,-562.07,0.00032876,5]
[341038119,1730299882445,-500.0,0.00032876,5]
[341038120,1730299882454,-500.0,0.00032876,5]
[341038121,1730299882464,-500.0,0.00032876,5]
[341038122,1730299882473,-500.0,0.00032876,5]
[341038123,1730299882482,-500.0,0.00032876,5]
[341038124,1730299882492,-500.0,0.00032876,5]
[341038125,1730299882504,-500.0,0.00032876,5]
[341038126,1730299882514,-150.0,0.00032876,2]
[341038127,1730299882523,-616.92786585,0.00032876,5]
[341038128,1730299882532,-500.0,0.00032876,5]
[341038129,1730299882542,-500.0,0.00032876,5]
[341038130,1730299882551,-500.0,0.00032876,5]
[341038131,1730299882561,-500.0,0.00032876,5]
[341038132,1730299882571,-500.0,0.00032876,5]
[341038133,1730299882580,-152.01032647,0.00032876,5]
[341038134,1730299882589,-172.1718281,0.00032876,5]
[341038135,1730299882599,-500.0,0.00032876,5]
[341038136,1730299882608,-500.0,0.00032876,5]
[341038137,1730299882618,-321.41540051,0.00032876,5]
[341038138,1730299882628,-500.0,0.00032876,2]
[341038139,1730299882638,-1108.52,0.00032876,5]
[341038140,1730299882647,-500.0,0.00032876,5]
[341038141,1730299882657,-500.0,0.00032876,5]
[341038142,1730299882667,-899.38,0.00032876,5]
[341038143,1730299882676,-500.0,0.00032876,5]
[341038144,1730299882685,-916.14,0.00032876,5]
[341038145,1730299882695,-500.0,0.00032876,5]
[341038146,1730299882705,-500.0,0.00032876,5]
[341038147,1730299882713,-500.0,0.00032876,5]
[341038148,1730299882722,-500.0,0.00032876,5]
[341038149,1730299882731,-500.0,0.00032876,5]
[341038150,1730299882740,-500.0,0.00032876,5]
[341038151,1730299882753,-1147.86,0.00032876,5]
[341038152,1730299882762,-500.0,0.00032876,5]
[341038153,1730299882772,-617.7,0.00032876,5]
[341038154,1730299882781,-500.0,0.00032876,5]
[341038155,1730299882790,-1088.55,0.00032876,5]
[341038156,1730299882798,-500.0,0.00032876,5]
[341038157,1730299882807,-500.0,0.00032876,5]
[341038158,1730299882816,-500.0,0.00032876,5]
[341038159,1730299882825,-500.0,0.00032876,5]
[341038160,1730299882835,-883.27,0.00032876,5]
[341038161,1730299882845,-203.60258698,0.00032876,5]
[341038162,1730299882855,-579.65,0.00032876,5]
[341038163,1730299882868,-500.0,0.00032876,5]
[341038164,1730299882877,-500.0,0.00032876,5]
[341038165,1730299882886,-500.0,0.00032876,5]
[341038166,1730299882895,-500.0,0.00032876,5]
[341038167,1730299882904,-6627.6,0.00032876,5]
[341038168,1730299882913,-1281.54,0.00032876,5]
[341038169,1730299882923,-670.52,0.00032876,5]
[341038170,1730299882931,-509.62496043,0.00032876,5]
[341038171,1730299882941,-500.0,0.00032876,5]
[341038172,1730299882950,-1308.28,0.00032876,5]
[341038173,1730299882960,-500.0,0.00032876,5]
[341038174,1730299882969,-500.0,0.00032876,5]
[341038175,1730299882979,-500.0,0.00032876,5]
[341038176,1730299882989,-500.0,0.00032876,2]
[341038177,1730299883000,-594.96,0.00032876,5]
[341038178,1730299883011,-500.0,0.00032876,5]
[341038179,1730299883020,-1527.21,0.00032876,5]
[341038180,1730299883029,-1968.52,0.00032876,5]
[341038181,1730299883038,-525.66274048,0.00032876,5]
[341038182,1730299883048,-500.0,0.00032876,5]
[341038183,1730299883057,-500.0,0.00032876,5]
[341038184,1730299883066,-151.0,0.00032876,7]
[341038185,1730299883075,-500.0,0.00032876,5]
[341038186,1730299883084,-1235.78,0.00032876,5]
[341038187,1730299883094,-2222.72,0.00032876,5]
[341038188,1730299883103,-601.0526559,0.00032876,5]
[341038189,1730299883113,-500.0,0.00032876,5]
[341038190,1730299883122,-500.0,0.00032876,5]
[341038191,1730299883131,-200.0,0.00032876,5]
[341038192,1730299883140,-500.0,0.00032876,5]
[341038193,1730299883149,-500.0,0.00032876,5]
[341038194,1730299883158,-1647.28,0.00032876,5]
[341038195,1730299883168,-500.0,0.00032876,5]
[341038196,1730299883177,-3841.76,0.00032876,5]
[341038197,1730299883186,-500.0,0.00032876,5]
[341038198,1730299883196,-509.11,0.00032876,5]
[341038199,1730299883205,-993.65,0.00032876,5]
[341038200,1730299883215,-500.0,0.00032876,5]
[341038201,1730299883224,-500.0,0.00032876,5]
[341038202,1730299883233,-500.0,0.00032876,5]
[341038203,1730299883243,-151.0,0.00032876,7]
[341038204,1730299883255,-862.1,0.00032876,5]
[341038205,1730299883264,-500.0,0.00032876,5]
[341038206,1730299883273,-500.0,0.00032876,5]
[341038207,1730299883282,-500.0,0.00032876,5]
[341038208,1730299883292,-500.0,0.00032876,5]
[341038209,1730299883302,-500.0,0.00032876,5]
[341038210,1730299883311,-500.0,0.00032876,5]
[341038211,1730299883321,-500.0,0.00032876,5]
[341038212,1730299883332,-333.10570445,0.00032876,5]
[341038213,1730299883347,-500.0,0.00032876,5]
[341038214,1730299883356,-500.0,0.00032876,5]
[341038215,1730299883366,-500.0,0.00032876,5]
[341038216,1730299883375,-524.05115859,0.00032876,5]
[341038217,1730299883384,-500.0,0.00032876,5]
[341038218,1730299883394,-969.25,0.00032876,5]
[341038219,1730299883403,-500.0,0.00032876,5]
[341038220,1730299883412,-500.0,0.00032876,5]
[341038221,1730299883421,-500.0,0.00032876,5]
[341038222,1730299883430,-500.0,0.00032876,5]
[341038223,1730299883439,-500.0,0.00032876,5]
[341038224,1730299883448,-301.42468851,0.00032876,5]
[341038225,1730299883457,-500.0,0.00032876,5]
[341038226,1730299883467,-500.0,0.00032876,5]
[341038227,1730299883476,-500.0,0.00032876,5]
[341038228,1730299883486,-500.0,0.00032876,5]
[341038229,1730299883495,-500.0,0.00032876,5]
[341038230,1730299883508,-500.0,0.00032876,5]
[341038231,1730299883518,-500.0,0.00032876,5]
[341038232,1730299883527,-500.0,0.00032876,5]
[341038233,1730299883536,-500.0,0.00032876,5]
[341038234,1730299883545,-500.0,0.00032876,5]
[341038235,1730299883555,-500.0,0.00032876,5]
[341038236,1730299883565,-500.0,0.00032876,5]
[341038237,1730299883574,-524.90495832,0.00032876,5]
[341038238,1730299883583,-625.17,0.00032876,5]
[341038239,1730299883593,-514.97412187,0.00032876,5]
[341038240,1730299883602,-500.0,0.00032876,5]
[341038241,1730299883612,-500.0,0.00032876,5]
[341038242,1730299883621,-1018.56,0.00032876,5]
[341038243,1730299883630,-500.0,0.00032876,5]
[341038244,1730299883640,-500.0,0.00032876,2]
[341038245,1730299883649,-509.47475016,0.00032876,5]
[341038246,1730299883657,-500.0,0.00032876,5]
[341038247,1730299883666,-500.0,0.00032876,5]
[341038248,1730299883675,-500.0,0.00032876,5]
[341038249,1730299883684,-1112.57,0.00032876,5]
[341038250,1730299883693,-500.0,0.00032876,5]
[341038251,1730299883702,-526.10965602,0.00032876,5]
[341038252,1730299883712,-691.4,0.00032876,5]
[341038253,1730299883721,-500.0,0.00032876,5]
[341038254,1730299883730,-500.0,0.00032876,5]
[341038255,1730299883739,-500.0,0.00032876,5]
[341038256,1730299883749,-500.0,0.00032876,5]
[341038257,1730299883769,-500.0,0.00032876,5]
[341038258,1730299883778,-500.0,0.00032876,5]
[341038259,1730299883788,-500.0,0.00032876,5]
[341038260,1730299883797,-500.0,0.00032876,5]
[341038261,1730299883806,-500.0,0.00032876,5]
[341038262,1730299883815,-500.0,0.00032876,5]
[341038263,1730299883824,-151.0,0.00032876,7]
[341038264,1730299883834,-151.0,0.00032876,7]
[341038265,1730299883844,-500.0,0.00032876,5]
[341038266,1730299883853,-1388.66,0.00032876,5]
[341038267,1730299883863,-151.0,0.00032876,7]
[341038268,1730299883874,-500.0,0.00032876,5]
[341038269,1730299883883,-500.0,0.00032876,5]
[341038270,1730299883892,-2096.63,0.00032876,5]
[341038271,1730299883902,-629.15545485,0.00032876,5]
[341038272,1730299883912,-151.0,0.00032876,7]
[341038273,1730299883922,-179.701898,0.00032876,7]
[341038274,1730299883931,-500.0,0.00032876,5]
[341038275,1730299883940,-500.0,0.00032876,5]
[341038276,1730299883951,-393.2971033,0.00032876,5]
[341038277,1730299883960,-500.0,0.00032876,5]
[341038278,1730299883970,-500.0,0.00032876,5]
[341038279,1730299883979,-500.0,0.00032876,5]
[341038280,1730299883988,-500.0,0.00032876,5]
[341038281,1730299883997,-500.0,0.00032876,5]
[341038282,1730299884006,-500.0,0.00032876,5]
[341038283,1730299884016,-500.0,0.00032876,5]
[341038284,1730299884025,-500.0,0.00032876,5]
[341038285,1730299884034,-500.0,0.00032876,5]
[341038286,1730299884044,-500.0,0.00032876,5]
[341038287,1730299884053,-500.0,0.00032876,5]
[341038288,1730299884062,-500.0,0.00032876,5]
[341038289,1730299884071,-500.0,0.00032876,5]
[341038290,1730299884080,-500.0,0.00032876,5]
[341038291,1730299884090,-2000.0,0.00032876,5]
[341038292,1730299884099,-500.0,0.00032876,5]
[341038293,1730299884109,-500.0,0.00032876,5]
[341038294,1730299884118,-500.0,0.00032876,5]
[341038295,1730299884128,-810.09,0.00032876,5]
[341038296,1730299884137,-500.0,0.00032876,5]
[341038297,1730299884271,-500.0,0.00032876,5]
[341038298,1730299884281,-500.0,0.00032876,5]
[341038299,1730299884293,-787.04,0.00032876,5]
[341038300,1730299884304,-500.0,0.00032876,5]
[341038301,1730299884314,-739.87,0.00032876,5]
[341038302,1730299884324,-500.0,0.00032876,5]
[341038303,1730299884334,-500.0,0.00032876,5]
[341038304,1730299884344,-500.0,0.00032876,5]
[341038305,1730299884353,-500.0,0.00032876,5]
[341038306,1730299884364,-1711.46,0.00032876,5]
[341038307,1730299884374,-500.0,0.00032876,5]
[341038308,1730299884384,-500.0,0.00032876,5]
[341038309,1730299884394,-500.0,0.00032876,5]
[341038310,1730299884403,-500.0,0.00032876,5]
[341038311,1730299884412,-500.0,0.00032876,5]
[341038312,1730299884422,-763.03,0.00032876,5]
[341038313,1730299884432,-500.0,0.00032876,5]
[341038314,1730299884442,-530.51278769,0.00032876,5]
[341038315,1730299884452,-500.0,0.00032876,5]
[341038316,1730299884461,-500.0,0.00032876,5]
[341038317,1730299884471,-500.0,0.00032876,5]
[341038318,1730299884480,-1990.98,0.00032876,5]
[341038319,1730299884490,-500.0,0.00032876,5]
[341038320,1730299884499,-500.0,0.00032876,5]